fUSD/lending_fUSD_20250213
["ID","MTS","AMOUNT","RATE_DAILY","PERIOD"]
[352946365,1739454648623,-583.44,0.00015117,2]
[352946366,1739454648632,-500.0,0.00015117,2]
[352946367,1739454648643,-2606.01,0.00015117,2]
[352946368,1739454648652,-1962.05,0.00015117,2]
[352946369,1739454648663,-500.0,0.00015117,2]
[352946370,1739454648677,-500.0,0.00015117,2]
[352946371,1739454648691,-2265.91,0.00015117,2]
[352946372,1739454648701,-872.42,0.00015117,2]
[352946373,1739454648713,-1795.99,0.00015117,2]
[352946374,1739454648723,-228.3979844,0.00015117,2]
[352946375,1739454648732,-818.37,0.00015117,2]
[352946376,1739454648742,-500.0,0.00015117,2]
[352946377,1739454648754,-1570.55,0.00015117,2]
[352946378,1739454648764,-500.0,0.00015117,2]
[352946379,1739454648776,-1644.64,0.00015117,2]
[352946380,1739454648786,-2956.62,0.00015117,2]
[352946381,1739454648796,-500.0,0.00015117,2]
[352946382,1739454648809,-500.0,0.00015117,2]
[352946383,1739454648819,-2771.33,0.00015117,2]
[352946384,1739454648829,-500.0,0.00015117,2]
[352946385,1739454648841,-1180.37,0.00015117,2]
[352946386,1739454648851,-520.98,0.00015117,2]
[352946387,1739454648862,-2737.6,0.00015117,2]
[352946388,1739454648872,-500.0,0.00015117,2]
[352946389,1739454648882,-500.0,0.00015117,2]
[352946390,1739454648891,-2429.43,0.00015117,2]
[352946391,1739454648902,-455.92333883,0.00015117,2]
[352946392,1739454648912,-1542.74,0.00015117,2]
[352946393,1739454648923,-2753.06,0.00015117,2]
[352946394,1739454648933,-500.0,0.00015117,2]
[352946395,1739454648942,-2978.73,0.00015117,2]
[352946396,1739454648952,-500.0,0.00015117,2]
[352946397,1739454648962,-2710.53,0.00015117,2]
[352946398,1739454648972,-500.0,0.00015117,2]
[352946399,1739454648983,-500.0,0.00015117,2]
[352946400,1739454648993,-500.0,0.00015117,2]
[352946401,1739454649007,-861.51,0.00015117,2]
[352946402,1739454649017,-500.0,0.00015117,2]
[352946403,1739454649026,-8167.16,0.00015117,2]
[352946404,1739454649036,-4277.72,0.00015117,2]
[352946405,1739454649045,-556.39,0.00015117,2]
[352946406,1739454649054,-2228.95,0.00015117,2]
[352946407,1739454649065,-500.0,0.00015117,2]
[352946408,1739454649075,-564.7,0.00015117,2]
[352946409,1739454649086,-3260.86,0.00015117,2]
[352946410,1739454649096,-834.67,0.00015117,2]
[352946411,1739454649106,-2080.25,0.00015117,2]
[352946412,1739454649116,-500.0,0.00015117,2]
[352946413,1739454649126,-3674.62,0.00015117,2]
[352946414,1739454649136,-457.76545564,0.00015117,2]
[352946415,1739454649146,-2133.27,0.00015117,2]
[352946416,1739454649156,-500.0,0.00015117,2]
[352946417,1739454649166,-500.0,0.00015117,2]
[352946418,1739454649176,-4022.41,0.00015117,2]
[352946419,1739454649186,-500.0,0.00015117,2]
[352946420,1739454649204,-4513.17,0.00015117,2]
[352946421,1739454649215,-6479.39,0.00015117,2]
[352946422,1739454649225,-500.0,0.00015117,2]
[352946423,1739454649235,-500.0,0.00015117,2]
[352946424,1739454649245,-500.0,0.00015117,2]
[352946425,1739454649259,-500.0,0.00015117,2]
[352946426,1739454649270,-770.52,0.00015117,2]
[352946427,1739454649280,-1757.2,0.00015117,2]
[352946428,1739454649290,-826.62,0.00015117,2]
[352946429,1739454649301,-500.0,0.00015117,2]
[352946430,1739454649312,-1701.94,0.00015117,2]
[352946431,1739454649322,-500.0,0.00015117,2]
[352946432,1739454649332,-1252.79,0.00015117,2]
[352946433,1739454649341,-507.78,0.00015117,2]
[352946434,1739454649351,-840.8,0.00015117,2]
[352946435,1739454649360,-993.15,0.00015117,2]
[352946436,1739454649370,-2744.88,0.00015117,2]
[352946437,1739454649380,-635.22,0.00015118,2]
[352946438,1739454649389,-1525.95,0.00015118,2]
[352946439,1739454649399,-1379.91,0.00015118,2]
[352946440,1739454649408,-500.0,0.00015118,2]
[352946441,1739454649418,-631.93,0.00015118,2]
[352946442,1739454649427,-500.0,0.00015118,2]
[352946443,1739454649437,-1251.18,0.00015118,2]
[352946444,1739454649447,-500.0,0.00015118,2]
[352946445,1739454649457,-163.772472,0.00015118,2]
[352946446,1739454649467,-500.0,0.00015118,2]
[352946447,1739454649476,-927.56,0.00015118,2]
[352946448,1739454649485,-1764.26,0.00015118,2]
[352946449,1739454649495,-500.0,0.00015118,2]
[352946450,1739454649507,-1283.69,0.00015118,2]
[352946451,1739454649517,-1624.66,0.00015118,2]
[352946452,1739454649527,-500.0,0.00015118,2]
[352946453,1739454649537,-888.63,0.00015118,2]
[352946454,1739454649546,-831.63,0.00015118,2]
[352946455,1739454649556,-1660.02,0.00015118,2]
[352946456,1739454649565,-741.98,0.00015118,2]
[352946457,1739454649575,-500.0,0.00015118,2]
[352946458,1739454649586,-955.26,0.00015118,2]
[352946459,1739454649596,-772.48,0.00015118,2]
[352946460,1739454649606,-534.72861336,0.00015118,2]
[352946461,1739454649615,-686.69,0.00015118,2]
[352946462,1739454649625,-500.0,0.00015118,2]
[352946463,1739454649634,-500.0,0.00015118,2]
[352946464,1739454649644,-1231.05,0.00015118,2]
[352946465,1739454649653,-501.98235384,0.00015118,2]
[352946466,1739454649666,-799.46,0.00015118,2]
[352946467,1739454649676,-610.02,0.00015118,2]
[352946468,1739454649687,-500.0,0.00015118,2]
[352946469,1739454649696,-600.0,0.00015118,2]
[352946470,1739454649705,-500.0,0.00015118,2]
[352946471,1739454649714,-1518.87,0.00015118,2]
[352946472,1739454649724,-500.0,0.00015118,2]
[352946473,1739454649734,-500.0,0.00015118,2]
[352946474,1739454649745,-503.38245669,0.00015118,2]
[352946475,1739454649758,-1135.88,0.00015118,2]
[352946476,1739454649767,-500.0,0.00015118,2]
[352946477,1739454649777,-500.0,0.00015118,2]
[352946478,1739454649787,-500.0,0.00015118,2]
[352946479,1739454649797,-921.36,0.00015118,2]
[352946480,1739454649806,-825.86,0.00015118,2]
[352946481,1739454649815,-592.55,0.00015118,2]
[352946482,1739454649825,-603.15176436,0.00015118,2]
[352946483,1739454649835,-1920.13,0.00015118,2]
[352946484,1739454649844,-502.93494386,0.00015118,2]
[352946485,1739454649854,-500.0,0.00015118,2]
[352946486,1739454649864,-151.0,0.00015118,2]
[352946487,1739454649873,-151.0,0.00015118,2]
[352946488,1739454649883,-500.0,0.00015118,2]
[352946489,1739454649893,-500.0,0.00015118,2]
[352946490,1739454649902,-500.0,0.00015118,2]
[352946491,1739454649912,-500.0,0.00015118,2]
[352946492,1739454649923,-500.0,0.00015118,2]
[352946493,1739454649933,-900.29,0.00015118,2]
[352946494,1739454649943,-560.79,0.00015118,2]
[352946495,1739454649953,-500.0,0.00015118,2]
[352946496,1739454649963,-509.83,0.00015118,2]
[352946497,1739454649972,-515.63134067,0.00015118,2]
[352946498,1739454649980,-500.0,0.00015118,2]
[352946499,1739454649990,-572.33,0.00015118,2]
[352946500,1739454650002,-914.16,0.00015118,2]
[352946501,1739454650011,-1084.85,0.00015118,2]
[352946502,1739454650021,-500.0,0.00015118,2]
[352946503,1739454650031,-854.86,0.00015118,2]
[352946504,1739454650040,-1737.11,0.00015118,2]
[352946505,1739454650050,-504.49332636,0.00015118,2]
[352946506,1739454650060,-500.0,0.00015118,2]
[352946507,1739454650069,-683.45,0.00015118,2]
[352946508,1739454650079,-826.46,0.00015118,2]
[352946509,1739454650087,-1709.17,0.00015118,2]
[352946510,1739454650097,-639.21,0.00015118,2]
[352946511,1739454650106,-539.21512011,0.00015118,2]
[352946512,1739454650115,-1105.96,0.00015118,2]
[352946513,1739454650124,-500.0,0.00015118,2]
[352946514,1739454650133,-502.99944854,0.00015118,2]
[352946515,1739454650143,-500.0,0.00015118,2]
[352946516,1739454650151,-1410.73,0.00015118,2]
[352946517,1739454650161,-3546.89,0.00015118,2]
[352946518,1739454650170,-500.0,0.00015118,2]
[352946519,1739454650180,-500.0,0.00015118,2]
[352946520,1739454650191,-2305.27,0.00015118,2]
[352946521,1739454650202,-627.85,0.00015118,2]
[352946522,1739454650211,-1620.77,0.00015118,2]
[352946523,1739454650220,-924.93,0.00015118,2]
[352946524,1739454650230,-500.0,0.00015118,2]
[352946525,1739454650240,-2477.26,0.00015118,2]
[352946526,1739454650251,-500.0,0.00015118,2]
[352946527,1739454650261,-1755.97,0.00015118,2]
[352946528,1739454650271,-1914.43,0.00015118,2]
[352946529,1739454650281,-151.0,0.00015118,2]
[352946530,1739454650290,-500.0,0.00015118,2]
[352946531,1739454650300,-151.0,0.00015118,2]
[352946532,1739454650309,-151.0,0.00015118,2]
[352946533,1739454650320,-1626.07,0.00015118,2]
[352946534,1739454650331,-3158.59,0.00015118,2]
[352946535,1739454650341,-500.0,0.00015118,2]
[352946536,1739454650351,-921.51,0.00015118,2]
[352946537,1739454650361,-1382.34,0.00015118,2]
[352946538,1739454650371,-500.0,0.00015118,2]
[352946539,1739454650381,-893.88,0.00015118,2]
[352946540,1739454650390,-1699.29,0.00015118,2]
[352946541,1739454650400,-500.0,0.00015118,2]
[352946542,1739454650409,-1726.74,0.00015118,2]
[352946543,1739454650419,-1770.39,0.00015118,2]
[352946544,1739454650429,-2754.79,0.00015118,2]
[352946545,1739454650439,-2573.18,0.00015118,2]
[352946546,1739454650449,-777.8,0.00015118,2]
[352946547,1739454650458,-3517.4,0.00015118,2]
[352946548,1739454650468,-932.97,0.00015118,2]
[352946549,1739454650477,-1684.91,0.00015118,2]
[352946550,1739454650487,-1747.07,0.00015118,2]
[352946551,1739454650497,-552.39130321,0.00015118,2]
[352946552,1739454650508,-2032.73,0.00015118,2]
[352946553,1739454650517,-517.55,0.00015118,2]
[352946554,1739454650527,-500.0,0.00015118,2]
[352946555,1739454650537,-2702.9,0.00015118,2]
[352946556,1739454650546,-500.0,0.00015118,2]
[352946557,1739454650555,-686.85,0.00015118,2]
[352946558,1739454650564,-606.33,0.00015118,2]
[352946559,1739454650574,-2725.41,0.00015118,2]
[352946560,1739454650584,-889.52,0.00015118,2]
[352946561,1739454650593,-2669.39,0.00015118,2]
[352946562,1739454650603,-4028.43,0.00015118,2]
[352946563,1739454650613,-3622.28,0.00015118,2]
[352946564,1739454650624,-2201.62,0.00015118,2]
[352946565,1739454650634,-500.0,0.00015118,2]
[352946566,1739454650643,-506.71582122,0.00015118,2]
[352946567,1739454650653,-1539.84,0.00015118,2]
[352946568,1739454650664,-1347.48,0.00015118,2]
[352946569,1739454650677,-500.0,0.00015118,2]
[352946570,1739454650686,-4466.89,0.00015118,2]
[352946571,1739454650697,-734.79,0.00015118,2]
[352946572,1739454650707,-500.0,0.00015118,2]
[352946573,1739454650716,-3227.44,0.00015118,2]
[352946574,1739454650726,-500.0,0.00015118,2]
[352946575,1739454650736,-3359.27,0.00015118,2]
[352946576,1739454650745,-4670.47,0.00015118,2]
[352946577,1739454650757,-267.296628,0.00015118,2]
[352946578,1739454650767,-267.296628,0.00015118,2]
[352946579,1739454650777,-2090.9,0.00015118,2]
[352946580,1739454650786,-692.37,0.00015118,2]
[352946581,1739454650796,-151.0,0.00015119,2]
[352946582,1739454650806,-199.448,0.00015119,2]
[352946583,1739454650816,-200.0,0.00015119,2]
[352946584,1739454650827,-500.0,0.00015119,2]
[352946585,1739454650837,-500.0,0.00015119,2]
[352946586,1739454650846,-500.0,0.00015119,2]
[352946587,1739454650856,-500.0,0.00015119,2]
[352946588,1739454650865,-500.0,0.00015119,2]
[352946589,1739454650875,-500.0,0.00015119,2]
[352946590,1739454650884,-500.0,0.00015119,2]
[352946591,1739454650894,-500.0,0.00015119,2]
[352946592,1739454650904,-500.0,0.00015119,2]
[352946593,1739454651090,-500.0,0.00015119,2]
[352946594,1739454651099,-500.0,0.00015119,2]
[352946595,1739454651109,-500.0,0.00015119,2]
[352946596,1739454651119,-500.0,0.00015119,2]
[352946597,1739454651128,-500.0,0.00015119,2]
[352946598,1739454651138,-500.0,0.00015119,2]
[352946599,1739454651147,-500.0,0.00015119,2]
[352946600,1739454651157,-670.83,0.00015119,2]
[352946601,1739454651167,-500.0,0.00015119,2]
[352946602,1739454651176,-500.0,0.00015119,2]
[352946603,1739454651186,-507.05209166,0.00015119,2]
[352946604,1739454651195,-500.0,0.00015119,2]
[352946605,1739454651204,-500.0,0.00015119,2]
[352946606,1739454651214,-728.56,0.00015119,2]
[352946607,1739454651223,-500.0,0.00015119,2]
[352946608,1739454651233,-500.0,0.00015119,2]
[352946609,1739454651242,-500.0,0.00015119,2]
[352946610,1739454651254,-500.0,0.00015119,2]
[352946611,1739454651263,-500.0,0.00015119,2]
[352946612,1739454651272,-500.0,0.00015119,2]
[352946613,1739454651282,-622.98870203,0.00015119,2]
[352946614,1739454651291,-500.0,0.00015119,2]
[352946615,1739454651301,-648.02,0.00015119,2]
[352946616,1739454651310,-500.0,0.00015119,2]
[352946617,1739454651320,-500.0,0.00015119,2]
[352946618,1739454651329,-500.0,0.00015119,2]
[352946619,1739454651338,-1200.0,0.00015119,2]
[352946620,1739454651347,-500.0,0.00015119,2]
[352946621,1739454651357,-500.0,0.00015119,30]
[352946622,1739454651366,-500.0,0.00015119,2]
[352946623,1739454651376,-642.82670003,0.00015119,2]
[352946624,1739454651385,-662.98,0.00015119,2]
[352946625,1739454651395,-500.0,0.00015119,2]
[352946626,1739454651405,-500.0,0.00015119,2]
[352946627,1739454651414,-500.0,0.00015119,2]
[352946628,1739454651424,-557.25,0.00015119,2]
[352946629,1739454651433,-500.0,0.00015119,2]
[352946630,1739454651443,-500.0,0.00015119,2]
[352946631,1739454651452,-930.34,0.00015119,2]
[352946632,1739454651461,-306.74913196,0.00015119,2]
[352946633,1739454651471,-612.52,0.00015119,2]
[352946634,1739454651481,-500.0,0.00015119,2]
[352946635,1739454651490,-500.0,0.00015119,2]
[352946636,1739454651499,-500.0,0.00015119,2]
[352946637,1739454651510,-500.0,0.00015119,2]
[352946638,1739454651519,-500.0,0.00015119,2]
[352946639,1739454651529,-825.53,0.00015119,2]
[352946640,1739454651539,-500.0,0.00015119,2]
[352946641,1739454651548,-948.61,0.00015119,2]
[352946642,1739454651557,-1087.42,0.00015119,2]
[352946643,1739454651567,-1305.7,0.00015119,2]
[352946644,1739454651577,-500.0,0.00015119,2]
[352946645,1739454651586,-716.26,0.00015119,2]
[352946646,1739454651596,-681.83,0.00015119,2]
[352946647,1739454651606,-999.96,0.00015119,2]
[352946648,1739454651615,-881.24,0.00015119,2]
[352946649,1739454651625,-674.27,0.00015119,2]
[352946650,1739454651634,-500.0,0.00015119,2]
[352946651,1739454651644,-877.14,0.00015119,2]
[352946652,1739454651653,-500.0,0.00015119,2]
[352946653,1739454651664,-500.0,0.00015119,2]
[352946654,1739454651674,-500.0,0.00015119,2]
[352946655,1739454651684,-500.0,0.00015119,2]
[352946656,1739454651693,-500.0,0.00015119,2]
[352946657,1739454651704,-500.0,0.00015119,2]
[352946658,1739454651713,-1979.72,0.00015119,2]
[352946659,1739454651722,-500.0,0.00015119,2]
[352946660,1739454651731,-596.47987233,0.00015119,2]
[352946661,1739454651742,-542.61,0.00015119,2]
[352946662,1739454651752,-696.88,0.00015119,2]
[352946663,1739454651761,-2109.94,0.00015119,2]
[352946664,1739454651771,-500.0,0.00015119,2]
[352946665,1739454651781,-500.0,0.00015119,2]
[352946666,1739454651790,-590.37,0.00015119,2]
[352946667,1739454651801,-856.64,0.00015119,2]
[352946668,1739454651812,-617.16,0.00015119,2]
[352946669,1739454651822,-730.57,0.00015119,2]
[352946670,1739454651832,-500.0,0.00015119,2]
[352946671,1739454651841,-500.0,0.00015119,2]
[352946672,1739454651851,-1773.13,0.00015119,2]
[352946673,1739454651860,-916.29,0.00015119,2]
[352946674,1739454651870,-500.0,0.00015119,2]
[352946675,1739454651879,-500.0,0.00015119,2]
[352946676,1739454651888,-510.87,0.00015119,2]
[352946677,1739454651898,-1305.5,0.00015119,2]
[352946678,1739454651908,-151.0,0.00015119,2]
[352946679,1739454651917,-500.0,0.00015119,2]
[352946680,1739454651926,-151.0,0.00015119,2]
[352946681,1739454651935,-585.26,0.00015119,2]
[352946682,1739454651944,-803.23,0.00015119,2]
[352946683,1739454651954,-500.0,0.00015119,2]
[352946684,1739454651963,-500.0,0.00015119,2]
[352946685,1739454651973,-510.18,0.00015119,2]
[352946686,1739454651983,-1285.97,0.00015119,2]
[352946687,1739454651992,-510.9926532,0.00015119,2]
[352946688,1739454652001,-908.72,0.00015119,2]
[352946689,1739454652010,-680.43,0.00015119,2]
[352946690,1739454652020,-500.0,0.00015119,2]
[352946691,1739454652029,-500.0,0.00015119,2]
[352946692,1739454652038,-1767.95,0.00015119,2]
[352946693,1739454652048,-1022.41,0.00015119,2]
[352946694,1739454652057,-737.1,0.00015119,2]
[352946695,1739454652067,-731.97,0.00015119,2]
[352946696,1739454652075,-541.62,0.00015119,2]
[352946697,1739454652085,-500.0,0.00015119,2]
[352946698,1739454652094,-1317.05,0.00015119,2]
[352946699,1739454652104,-500.0,0.00015119,2]
[352946700,1739454652114,-1456.56,0.00015119,2]
[352946701,1739454652123,-742.77,0.00015119,2]
[352946702,1739454652134,-1372.99,0.00015119,2]
[352946703,1739454652143,-272.39876081,0.00015119,2]
[352946704,1739454652153,-500.0,0.00015119,2]
[352946705,1739454652162,-500.0,0.00015119,2]
[352946706,1739454652171,-500.0,0.00015119,2]
[352946707,1739454652180,-500.0,0.00015119,2]
[352946708,1739454652190,-500.0,0.00015119,2]
[352946709,1739454652199,-1411.76,0.00015119,2]
[352946710,1739454652208,-555.27,0.00015119,2]
[352946711,1739454652218,-500.0,0.00015119,2]
[352946712,1739454652227,-500.0,0.00015119,2]
[352946713,1739454652236,-2118.79,0.00015119,2]
[352946714,1739454652246,-957.69,0.00015119,2]
[352946715,1739454652258,-935.43,0.00015119,2]
[352946716,1739454652267,-262.698776,0.00015119,2]
[352946717,1739454652276,-500.0,0.00015119,2]
[352946718,1739454652286,-151.0,0.00015119,2]
[352946719,1739454652295,-151.0,0.00015119,2]
[352946720,1739454652304,-556.39,0.00015119,2]
[352946721,1739454652314,-1609.06,0.00015119,2]
[352946722,1739454652323,-1321.06,0.00015119,2]
[352946723,1739454652332,-500.0,0.00015119,2]
[352946724,1739454652341,-200.0,0.00015119,2]
[352946725,1739454652350,-638.96,0.00015119,2]
[352946726,1739454652359,-500.0,0.00015119,2]
[352946727,1739454652368,-500.0,0.00015119,2]
[352946728,1739454652377,-832.3,0.00015119,2]
[352946729,1739454652386,-500.0,0.00015119,2]
[352946730,1739454652395,-554.85,0.00015119,2]
[352946731,1739454652405,-548.41,0.00015119,2]
[352946732,1739454652414,-1039.68,0.00015119,2]
[352946733,1739454652423,-500.0,0.00015119,2]
[352946734,1739454652432,-1181.5,0.00015119,2]
[352946735,1739454652441,-192.80886091,0.00015119,2]
[352946736,1739454652451,-753.88,0.00015119,2]
[352946737,1739454652461,-608.67,0.00015119,2]
[352946738,1739454652471,-1135.12,0.00015119,2]
[352946739,1739454652482,-824.32,0.00015119,2]
[352946740,1739454652492,-500.0,0.00015119,2]
[352946741,1739454652507,-1021.97,0.00015119,2]
[352946742,1739454652516,-1858.06,0.00015119,2]
[352946743,1739454652525,-1009.57,0.00015119,2]
[352946744,1739454652535,-500.0,0.00015119,2]
[352946745,1739454652544,-981.5,0.00015119,2]
[352946746,1739454652552,-500.0,0.00015119,2]
[352946747,1739454652562,-2523.07,0.00015119,2]
[352946748,1739454652572,-500.0,0.00015119,2]
[352946749,1739454652581,-1393.14,0.00015119,2]
[352946750,1739454652590,-2545.2,0.00015119,2]
[352946751,1739454652599,-567.42,0.00015119,2]
[352946752,1739454652608,-981.13,0.00015119,2]
[352946753,1739454652618,-500.0,0.00015119,2]
[352946754,1739454652628,-545.27,0.00015119,2]
[352946755,1739454652639,-500.0,0.00015119,2]
[352946756,1739454652648,-3003.83,0.00015119,2]
[352946757,1739454652658,-151.0,0.00015119,2]
[352946758,1739454652672,-151.0,0.00015119,2]
[352946759,1739454652681,-1822.82,0.00015119,2]
[352946760,1739454652690,-151.0,0.00015119,2]
[352946761,1739454652700,-151.0,0.00015119,2]
[352946762,1739454652710,-500.0,0.00015119,2]
[352946763,1739454652720,-151.0,0.00015119,2]
[352946764,1739454652729,-151.0,0.00015119,2]
[352946765,1739454652740,-4398.5,0.00015119,2]
[352946766,1739454652753,-1068.9,0.00015119,2]
[352946767,1739454652762,-2080.4,0.00015119,2]
[352946768,1739454652772,-990.84,0.00015119,2]
[352946769,1739454652781,-500.0,0.00015119,2]
[352946770,1739454652791,-500.0,0.00015119,2]
[352946771,1739454652801,-3364.3,0.00015119,2]
[352946772,1739454652811,-1588.37,0.00015119,2]
[352946773,1739454652821,-500.0,0.00015119,2]
[352946774,1739454652830,-500.0,0.00015119,2]
[352946775,1739454652839,-500.0,0.00015119,2]
[352946776,1739454652849,-2090.15,0.00015119,2]
[352946777,1739454652858,-500.0,0.00015119,2]
[352946778,1739454652868,-1551.48,0.00015119,2]
[352946779,1739454652878,-2120.98,0.00015119,2]
[352946780,1739454652888,-500.0,0.00015119,7]
[352946781,1739454652898,-600.53,0.00015119,2]
[352946782,1739454652907,-1233.8,0.00015119,2]
[352946783,1739454652918,-1457.62,0.00015119,2]
[352946784,1739454652927,-793.1,0.00015119,2]
[352946785,1739454652936,-1123.03,0.00015119,2]
[352946786,1739454652946,-500.0,0.00015119,2]
[352946787,1739454652955,-751.31,0.00015119,2]
[352946788,1739454652965,-500.0,0.00015119,2]
[352946789,1739454652975,-686.85,0.00015119,2]
[352946790,1739454652984,-1101.68,0.00015119,2]
[352946791,1739454652994,-1981.32,0.00015119,2]
[352946792,1739454653006,-2230.98,0.00015119,2]
[352946793,1739454653015,-1152.17,0.00015119,2]
[352946794,1739454653024,-1069.09,0.00015119,2]
[352946795,1739454653034,-1045.84,0.00015119,2]
[352946796,1739454653043,-1238.19,0.00015119,2]
[352946797,1739454653053,-746.05,0.00015119,2]
[352946798,1739454653063,-713.22,0.00015119,2]
[352946799,1739454653072,-2459.12,0.00015119,2]
[352946800,1739454653082,-500.0,0.00015119,2]
[352946801,1739454653091,-500.0,0.00015119,2]
[352946802,1739454653101,-500.0,0.00015119,2]
[352946803,1739454653110,-690.0,0.00015119,2]
[352946804,1739454653120,-2420.43,0.00015119,2]
[352946805,1739454653129,-500.0,0.00015119,2]
[352946806,1739454653139,-1682.43,0.00015119,2]
[352946807,1739454653148,-500.0,0.00015119,2]
[352946808,1739454653157,-595.54,0.00015119,2]
[352946809,1739454653166,-2893.27,0.00015119,2]
[352946810,1739454653175,-1071.58,0.00015119,2]
[352946811,1739454653185,-833.79,0.00015119,2]
[352946812,1739454653194,-593.24,0.00015119,2]
[352946813,1739454653203,-2488.64,0.00015119,2]
[352946814,1739454653213,-1178.64,0.00015119,2]
[352946815,1739454653222,-500.0,0.00015119,2]
[352946816,1739454653231,-500.0,0.00015119,2]
[352946817,1739454653240,-929.26,0.00015119,2]
[352946818,1739454653250,-558.42,0.00015119,2]
[352946819,1739454653263,-2718.7,0.00015119,2]
[352946820,1739454653273,-727.68,0.00015119,2]
[352946821,1739454653282,-644.95,0.00015119,2]
[352946822,1739454653291,-893.26,0.00015119,2]
[352946823,1739454653301,-500.0,0.00015119,2]
[352946824,1739454653310,-3927.35,0.00015119,2]
[352946825,1739454653319,-500.0,0.00015119,2]
[352946826,1739454653329,-1110.12,0.00015119,2]
[352946827,1739454653338,-9059.64,0.00015119,2]
[352946828,1739454653347,-267.296628,0.00015119,2]
[352946829,1739454653357,-500.0,0.00015119,2]
[352946830,1739454653367,-831.3,0.00015119,2]
[352946831,1739454653376,-267.296628,0.00015119,2]
[352946832,1739454653386,-500.0,0.00015119,2]
[352946833,1739454653396,-151.0,0.0001512,2]
[352946834,1739454653406,-151.0,0.0001512,2]
[352946835,1739454653415,-151.0,0.0001512,2]
[352946836,1739454653425,-500.0,0.0001512,2]
[352946837,1739454653435,-151.0,0.0001512,2]
[352946838,1739454653445,-151.0,0.0001512,2]
[352946839,1739454653455,-500.0,0.0001512,2]
[352946840,1739454653465,-1220.97,0.0001512,2]
[352946841,1739454653475,-1056.71,0.0001512,2]
[352946842,1739454653485,-781.54,0.0001512,2]
[352946843,1739454653495,-724.94,0.0001512,2]
[352946844,1739454653510,-1788.29,0.0001512,2]
[352946845,1739454653520,-500.0,0.0001512,2]
[352946846,1739454653530,-500.0,0.0001512,2]
[352946847,1739454653539,-500.0,0.0001512,2]
[352946848,1739454653548,-500.0,0.0001512,2]
[352946849,1739454653557,-604.12,0.0001512,2]
[352946850,1739454653567,-1008.16,0.0001512,2]
[352946851,1739454653577,-1101.63,0.0001512,2]
[352946852,1739454653587,-500.0,0.0001512,2]
[352946853,1739454653596,-1005.04,0.0001512,2]
[352946854,1739454653606,-1045.45,0.0001512,2]
[352946855,1739454653616,-1851.03,0.0001512,2]
[352946856,1739454653625,-1524.77,0.0001512,2]
[352946857,1739454653636,-500.0,0.0001512,2]
[352946858,1739454653645,-500.0,0.0001512,2]
[352946859,1739454653655,-2094.33,0.0001512,2]
[352946860,1739454653666,-2337.86,0.0001512,2]
[352946861,1739454653678,-500.0,0.0001512,2]
[352946862,1739454653688,-532.16,0.0001512,2]
[352946863,1739454653698,-1151.11,0.0001512,2]
[352946864,1739454653708,-973.9,0.0001512,2]